bitfinex/quotes_BTCUSD_20230114
["timestamp","ask_amount","ask_price","bid_price","bid_amount"]
[1673708877160,0.10934403,20836.0,20835.0,1.35186]
[1673708877412,0.10934403,20836.0,20835.0,1.25186]
[1673708878416,0.15434403,20836.0,20835.0,1.26086]
[1673708880466,0.15434403,20836.0,20835.0,0.009]
[1673708880704,0.14934403,20836.0,20835.0,0.009]
[1673708882463,0.87788503,20836.0,20835.0,0.009]
[1673708882716,1.35782303,20836.0,20835.0,0.009]
[1673708884259,1.35282303,20836.0,20835.0,0.009]
[1673708884511,1.65282303,20836.0,20835.0,0.009]
[1673708885310,1.75282303,20836.0,20835.0,0.009]
[1673708885563,1.75282303,20836.0,20828.0,0.49136728]
[1673708885564,0.0044045,20834.0,20828.0,0.01124628]
[1673708885817,2.10800564,20833.0,20828.0,0.01124628]
[1673708886068,0.1,20831.0,20828.0,0.01124628]
[1673708886328,1.208755,20830.0,20828.0,0.01124628]
[1673708886583,1.15937795,20830.0,20828.0,0.01124628]
[1673708886836,0.240103,20829.0,20828.0,0.01124628]
[1673708887102,1.308801,20829.0,20828.0,0.01124628]
[1673708887359,1.208801,20829.0,20828.0,0.01124628]
[1673708888177,0.240103,20829.0,20828.0,0.01124628]
[1673708889276,0.480064,20831.0,20828.0,0.01124628]
[1673708889521,0.134,20829.0,20828.0,0.19645436]
[1673708889775,0.480043,20832.0,20828.0,0.01124628]
[1673708889776,0.0085,20831.0,20828.0,0.01124628]
[1673708890279,0.240103,20830.0,20828.0,0.01124628]
[1673708890579,0.069,20829.0,20828.0,0.01324628]
[1673708890847,0.557556,20831.0,20828.0,0.01324628]
[1673708891087,0.488556,20831.0,20828.0,0.01124628]
[1673708891344,0.488556,20831.0,20828.0,0.01324628]
[1673708891345,0.309103,20830.0,20828.0,0.01324628]
[1673708891586,0.069,20830.0,20828.0,0.01324628]
[1673708891844,0.240103,20829.0,20828.0,0.01324628]
[1673708892345,0.19072595,20829.0,20828.0,0.01124628]
[1673708892602,1.235011,20829.0,20828.0,0.01324628]
[1673708892866,1.235011,20829.0,20828.0,0.01124628]
[1673708893122,1.304011,20829.0,20828.0,0.01324628]
[1673708893374,1.404011,20829.0,20828.0,0.01324628]
[1673708893851,2.34138369,20829.0,20828.0,0.01324628]
[1673708894094,2.59868369,20829.0,20828.0,0.01324628]
[1673708894569,2.43851269,20829.0,20828.0,0.01324628]
[1673708896088,0.1,20828.0,20825.0,0.01100828]
[1673708896340,0.47720169,20827.0,20825.0,0.01100828]
[1673708896585,0.82580469,20826.0,20825.0,0.01100828]
[1673708896835,1.78614269,20826.0,20825.0,0.01100828]
[1673708897591,2.21514269,20826.0,20825.0,0.01100828]
[1673708898085,0.248603,20826.0,20825.0,0.19521636]
[1673708898336,0.24443621,20830.0,20825.0,0.01100828]
[1673708898337,0.48108309,20830.0,20825.0,0.01100828]
[1673708898586,0.480105,20829.0,20825.0,0.19521636]
[1673708898840,0.480105,20829.0,20825.0,0.01100828]
[1673708898841,0.240103,20828.0,20825.0,0.01100828]
[1673708899085,1.18634669,20827.0,20825.0,0.01100828]
[1673708899332,0.71730469,20826.0,20825.0,0.01100828]
[1673708899588,1.33047369,20826.0,20825.0,0.01100828]
[1673708899824,1.33897369,20826.0,20825.0,0.01100828]
[1673708900090,1.30597369,20826.0,20825.0,0.01100828]
[1673708900340,1.60597369,20826.0,20825.0,0.01100828]
[1673708900572,1.91319344,20826.0,20825.0,0.01100828]
[1673708900816,2.04619344,20826.0,20825.0,0.01100828]
[1673708901056,1.51319344,20826.0,20825.0,0.01100828]
[1673708901311,2.04619344,20826.0,20825.0,0.01100828]
[1673708901815,1.74619344,20826.0,20825.0,0.01100828]
[1673708902090,2.52636244,20826.0,20825.0,0.01100828]
[1673708902335,2.09336244,20826.0,20825.0,0.01100828]
[1673708902593,2.52936244,20826.0,20825.0,0.01100828]
[1673708903095,1.82214269,20826.0,20825.0,0.01100828]
[1673708904330,1.34197369,20826.0,20825.0,0.01100828]
[1673708904830,0.376103,20826.0,20825.0,0.01100828]
[1673708905076,1.336441,20826.0,20825.0,0.01100828]
[1673708905322,1.096338,20826.0,20825.0,0.01100828]
[1673708905573,2.14957306,20826.0,20825.0,0.01100828]
[1673708905826,2.14957306,20826.0,20820.0,0.25]
[1673708905827,0.00566717,20824.0,20820.0,0.25]
[1673708906098,1.62841164,20823.0,20820.0,0.25]
[1673708906365,0.248603,20822.0,20820.0,0.25]
[1673708906625,0.488773,20822.0,20820.0,0.25]
[1673708906864,0.240103,20821.0,20820.0,0.25]
[1673708907129,0.0085,20822.0,20820.0,0.25]
[1673708907379,0.07811497,20824.0,20820.0,0.25]
[1673708907618,0.07811497,20824.0,20820.0,0.91451008]
[1673708907865,0.07811497,20824.0,20821.0,0.1]
[1673708908127,0.07811497,20824.0,20821.0,1.24474808]
[1673708908371,0.01311497,20824.0,20821.0,0.96054]
[1673708908624,0.006,20822.0,20821.0,0.96054]
[1673708908870,0.01311497,20824.0,20821.0,0.96054]
[1673708909130,0.14611497,20824.0,20821.0,0.96054]
[1673708909377,0.14611497,20824.0,20820.0,0.25]
[1673708909378,0.0146115,20823.0,20820.0,0.25]
[1673708909668,1.200625,20822.0,20820.0,0.25]
[1673708909899,0.03471,20821.0,20820.0,0.25]
[1673708910144,0.03471,20821.0,20815.0,2.20565452]
[1673708910145,2.20330864,20821.0,20815.0,0.84094952]
[1673708910398,0.129,20819.0,20815.0,0.84094952]
[1673708910660,0.43932895,20818.0,20816.0,0.00060027]
[1673708910931,0.0085,20818.0,20816.0,0.00060027]
[1673708911154,0.0085,20818.0,20815.0,0.84094952]
[1673708912416,0.0245,20818.0,20815.0,0.84094952]
[1673708912663,0.0245,20818.0,20816.0,0.1]
[1673708912664,0.016,20818.0,20816.0,0.1]
[1673708912909,0.016,20818.0,20817.0,0.292242]
[1673708913161,0.0245,20818.0,20815.0,0.84094952]
[1673708913423,0.0085,20817.0,20815.0,0.83594952]
[1673708913672,0.488882,20817.0,20815.0,0.83594952]
[1673708913925,0.6338406,20817.0,20815.0,0.83594952]
[1673708914173,1.1142166,20817.0,20815.0,0.83594952]
[1673708914422,0.240103,20816.0,20815.0,0.83594952]
[1673708914677,0.488899,20816.0,20815.0,0.83594952]
[1673708915179,0.969298,20816.0,20815.0,0.83594952]
[1673708915677,1.034298,20816.0,20815.0,0.83594952]
[1673708916429,1.034298,20816.0,20815.0,0.83094952]
[1673708917190,1.274401,20816.0,20815.0,0.83065252]
[1673708917449,1.51149969,20816.0,20815.0,0.83065252]
[1673708917694,1.75160269,20816.0,20815.0,0.83065252]
[1673708917952,1.75160269,20816.0,20814.0,0.61558221]
[1673708917953,2.24232864,20816.0,20814.0,0.61558221]
[1673708918205,1.54900346,20815.0,20814.0,0.61558221]
[1673708918460,1.80622669,20815.0,20814.0,0.61558221]
[1673708919718,1.82216669,20815.0,20814.0,0.61558221]
[1673708920733,3.01616669,20815.0,20814.0,0.61558221]
[1673708921240,3.15216669,20815.0,20814.0,0.61558221]
[1673708921494,0.29708079,20814.0,20813.0,0.01215648]
[1673708921746,2.04367248,20814.0,20813.0,0.01215648]
[1673708921993,2.28377548,20814.0,20811.0,0.01174604]
[1673708922250,0.78570169,20813.0,20811.0,0.01174604]
[1673708922504,2.67607065,20812.0,20811.0,0.01174604]
[1673708922764,2.85637065,20812.0,20811.0,0.01174604]
[1673708923016,2.85637065,20812.0,20811.0,0.00674604]
[1673708923760,2.98527065,20812.0,20811.0,0.00674604]
[1673708924728,3.12227065,20812.0,20811.0,0.00674604]
[1673708925742,3.12227065,20812.0,20807.0,0.01013873]
[1673708925996,0.14414,20810.0,20807.0,0.01013873]
[1673708926237,2.63954869,20809.0,20807.0,0.01013873]
[1673708926481,0.0085,20808.0,20807.0,0.01013873]
[1673708926729,0.480557,20810.0,20809.0,0.25]
[1673708926970,0.480523,20811.0,20809.0,0.43420808]
[1673708927227,0.136,20810.0,20809.0,0.25]
[1673708927475,0.00099682,20812.0,20809.0,0.592376]
[1673708927734,0.00099682,20812.0,20810.0,0.1]
[1673708928031,0.00099682,20812.0,20811.0,0.542345]
[1673708928266,1.199,20814.0,20811.0,0.542345]
[1673708928569,1.199,20814.0,20811.0,0.25]
[1673708928790,0.015,20812.0,20811.0,0.43420808]
[1673708929045,0.015,20812.0,20810.0,0.011]
[1673708929291,0.015,20812.0,20811.0,0.29234]
[1673708929589,0.015,20812.0,20811.0,0.69234]
[1673708929795,0.00099784,20815.0,20813.0,0.25]
[1673708930036,0.00099784,20815.0,20813.0,0.43420808]
[1673708930287,0.480364,20818.0,20814.0,0.292293]
[1673708930537,0.00098215,20818.0,20814.0,0.18420808]
[1673708930787,0.00098215,20818.0,20815.0,0.18420808]
[1673708931020,0.480317,20820.0,20815.0,0.18420808]
[1673708931272,0.480317,20820.0,20813.0,0.739462]
[1673708931273,0.480317,20820.0,20816.0,0.18420808]
[1673708931508,0.071,20818.0,20816.0,0.18420808]
[1673708931750,0.071,20818.0,20813.0,0.8788]
[1673708931751,0.551356,20818.0,20813.0,0.8788]
[1673708931996,0.43082895,20817.0,20813.0,0.8788]
[1673708932258,0.67112595,20816.0,20813.0,0.8788]
[1673708932510,1.02112595,20816.0,20813.0,0.8788]
[1673708932753,0.91653064,20815.0,20811.0,0.25]
[1673708933011,1.15162595,20814.0,20811.0,0.25]
[1673708933258,1.15162595,20814.0,20813.0,0.009]
[1673708933520,1.46850513,20814.0,20811.0,0.25]
[1673708933771,1.41062808,20814.0,20813.0,0.009]
[1673708934019,0.0085,20813.0,20811.0,0.25]
[1673708934254,0.960984,20812.0,20811.0,0.258]
[1673708934492,1.209587,20812.0,20811.0,0.25]
[1673708934787,1.209587,20812.0,20811.0,0.256]
[1673708935745,0.969484,20812.0,20811.0,0.001]
[1673708935996,1.3545804,20812.0,20807.0,0.93083873]
[1673708936235,0.19922595,20811.0,20807.0,0.93083873]
[1673708936477,1.16027995,20811.0,20807.0,0.93083873]
[1673708936973,0.489018,20811.0,20808.0,0.18420808]
[1673708937223,0.00095888,20812.0,20809.0,0.292376]
[1673708937453,0.015,20811.0,20810.0,0.1]
[1673708937708,0.015,20811.0,20810.0,0.392359]
[1673708937957,0.015,20811.0,20810.0,1.653435]
[1673708938206,0.015,20811.0,20810.0,2.253435]
[1673708938207,0.0001,20811.0,20810.0,2.253435]
[1673708938441,0.00096757,20815.0,20812.0,0.25]
[1673708938709,0.00096757,20815.0,20813.0,0.96467608]
[1673708938970,0.480346,20819.0,20814.0,0.392294]
[1673708939251,0.480346,20819.0,20815.0,0.18420808]
[1673708939252,0.00098013,20819.0,20815.0,0.18420808]
[1673708939501,0.00098013,20819.0,20817.0,0.1]
[1673708939778,0.00098013,20819.0,20818.0,0.292225]
[1673708940027,0.00814715,20819.0,20818.0,0.292225]
[1673708940278,0.01114715,20819.0,20817.0,0.48036]
[1673708940560,0.1988731,20819.0,20817.0,0.48036]
[1673708940823,0.1988731,20819.0,20815.0,0.480411]
[1673708940824,0.00814715,20819.0,20815.0,0.480411]
[1673708941084,0.1988731,20819.0,20814.0,0.48044]
[1673708941324,0.19072595,20818.0,20814.0,0.48044]
[1673708941567,0.19072595,20818.0,20817.0,0.009]
[1673708941818,0.08511922,20819.0,20817.0,0.19320808]
[1673708942073,0.08511922,20819.0,20817.0,0.009]
[1673708942074,0.09114715,20819.0,20817.0,0.009]
[1673708942317,0.00814715,20819.0,20817.0,0.480375]
[1673708942568,0.00814715,20819.0,20818.0,0.292226]
[1673708942815,0.00814715,20819.0,20817.0,0.580375]
[1673708943084,0.00814715,20819.0,20817.0,0.480375]
[1673708943340,0.04214715,20819.0,20817.0,0.482375]
[1673708943608,0.04214715,20819.0,20817.0,0.00260025]
[1673708943845,0.04214715,20819.0,20817.0,0.002]
[1673708944103,1.25664806,20819.0,20817.0,0.002]
[1673708944353,0.248603,20818.0,20812.0,1.590069]
[1673708944638,0.248603,20818.0,20812.0,1.1096]
[1673708944639,1.39161495,20817.0,20812.0,1.1096]
[1673708944866,1.39161495,20817.0,20814.0,0.25]
[1673708944867,0.0085,20816.0,20814.0,0.25]
[1673708945107,0.720525,20815.0,20814.0,0.25]
[1673708945358,1.209447,20815.0,20814.0,0.25]
[1673708945612,1.209447,20815.0,20813.0,0.25]
[1673708945861,0.03471,20814.0,20813.0,0.25]
[1673708946107,1.235703,20814.0,20813.0,0.25]
[1673708946377,0.9956,20814.0,20813.0,0.25]
[1673708946642,1.235703,20814.0,20813.0,0.25]
[1673708946919,1.235703,20814.0,20809.0,0.8923]
[1673708947417,0.19072595,20813.0,20809.0,0.8923]
[1673708947660,0.19072595,20813.0,20807.0,0.87123873]
[1673708947661,1.40032095,20812.0,20807.0,0.87123873]
[1673708947912,0.19072595,20811.0,20807.0,0.87123873]
[1673708948171,0.969492,20812.0,20807.0,0.87123873]
[1673708948172,1.40041195,20810.0,20807.0,0.87123873]
[1673708948495,1.15180895,20810.0,20809.0,0.009]
[1673708948746,0.0085,20809.0,20807.0,0.01913873]
[1673708949001,0.48048,20813.0,20807.0,0.67495081]
[1673708949254,0.00095323,20814.0,20809.0,0.25]
[1673708949255,0.015,20810.0,20809.0,0.25]
[1673708949511,0.015,20810.0,20809.0,0.35]
[1673708949841,0.015,20810.0,20809.0,0.292376]
[1673708950034,0.015,20810.0,20809.0,0.542376]
[1673708950291,0.00099302,20813.0,20809.0,0.542376]
[1673708950547,0.00099302,20813.0,20809.0,0.25]
[1673708950548,0.03471,20810.0,20809.0,0.25]
[1673708950796,1.235889,20810.0,20807.0,0.01013873]
[1673708951065,0.00099302,20813.0,20809.0,0.480561]
[1673708951321,0.00099302,20813.0,20809.0,0.739561]
[1673708951322,0.007,20810.0,20809.0,0.739561]
[1673708951559,0.007,20810.0,20809.0,0.781934]
[1673708951803,0.007,20810.0,20809.0,1.262495]
[1673708952062,0.00099302,20813.0,20809.0,1.553495]
[1673708952325,0.00099302,20813.0,20811.0,0.1]
[1673708952326,0.00799302,20813.0,20811.0,0.1]
[1673708952590,0.00799302,20813.0,20812.0,0.292329]
[1673708952837,0.007,20813.0,20812.0,1.25702908]
[1673708953089,0.007,20813.0,20812.0,1.072821]
[1673708953339,0.00099475,20816.0,20813.0,0.1]
[1673708953639,0.00099475,20816.0,20814.0,0.480445]
[1673708953860,0.00814715,20819.0,20815.0,0.292277]
[1673708954111,0.00814715,20819.0,20816.0,0.18420808]
[1673708954615,0.00814715,20819.0,20815.0,0.480422]
[1673708954906,0.00814715,20819.0,20815.0,0.66463008]
[1673708955137,0.14414715,20819.0,20815.0,0.66563008]
[1673708955372,0.14414715,20819.0,20816.0,0.1]
[1673708955879,0.43486859,20819.0,20815.0,0.481422]
[1673708956151,0.15123024,20818.0,20812.0,0.48048]
[1673708956397,0.91121795,20817.0,20816.0,0.001]
[1673708956641,0.0085,20817.0,20816.0,0.001]
[1673708956896,0.274813,20817.0,20816.0,0.001]
[1673708957154,0.274813,20817.0,20814.0,0.25]
[1673708957155,0.41754324,20817.0,20814.0,0.25]
[1673708957444,0.0085,20816.0,20814.0,0.25]
[1673708958436,0.1445,20817.0,20814.0,0.251]
[1673708959192,0.1445,20817.0,20814.0,0.25]
[1673708959459,0.0085,20817.0,20814.0,0.25]
[1673708959731,0.136,20816.0,20814.0,0.251]
[1673708960067,0.480372,20818.0,20814.0,0.25]
[1673708960253,0.136,20817.0,20814.0,0.43520808]
[1673708960521,0.136,20817.0,20814.0,0.251]
[1673708960757,0.67642764,20816.0,20814.0,0.25]
[1673708961003,0.67642764,20816.0,20808.0,0.01294156]
[1673708961004,0.15657729,20813.0,20808.0,0.01294156]
[1673708961261,1.15173095,20812.0,20808.0,0.01294156]
[1673708961504,0.43082895,20811.0,20808.0,0.01294156]
[1673708961756,0.480513,20812.0,20808.0,0.01294156]
[1673708962014,0.15753751,20813.0,20808.0,0.67773064]
[1673708962015,0.63802551,20813.0,20808.0,0.67773064]
[1673708962264,0.82875146,20813.0,20808.0,0.67773064]
[1673708962782,0.34826346,20813.0,20812.0,0.25]
[1673708963015,0.17903751,20813.0,20812.0,0.25]
[1673708963272,1.37911629,20813.0,20812.0,0.25]
[1673708963524,1.65082924,20813.0,20812.0,0.25]
[1673708963791,1.7372836,20813.0,20812.0,0.25]
[1673708964067,2.21742529,20813.0,20812.0,0.25]
[1673708964295,2.50904338,20813.0,20812.0,0.251]
[1673708964545,2.9306393,20813.0,20812.0,0.251]
[1673708964801,3.48267629,20813.0,20812.0,0.251]
[1673708965107,4.24375047,20813.0,20812.0,0.25]
[1673708965317,3.95777846,20813.0,20812.0,0.251]
[1673708965579,0.1,20812.0,20808.0,0.19714964]
[1673708965835,0.1,20812.0,20808.0,0.01294156]
[1673708965836,0.64623886,20809.0,20808.0,0.01294156]
[1673708966092,3.0203925,20809.0,20808.0,0.01294156]
[1673708966532,2.54574923,20809.0,20808.0,0.01294156]
[1673708966533,2.19291647,20809.0,20808.0,0.01294156]
[1673708966977,2.32891647,20809.0,20808.0,0.01394156]
[1673708967187,2.66242431,20809.0,20808.0,0.01394156]
[1673708967409,1.695725,20809.0,20808.0,0.01394156]
[1673708967647,1.215164,20809.0,20808.0,0.01394156]
[1673708967872,1.215164,20809.0,20808.0,0.01294156]
[1673708968085,1.079164,20809.0,20808.0,0.01394156]
[1673708968316,0.865164,20809.0,20808.0,0.01394156]
[1673708968535,1.82292669,20809.0,20808.0,0.01394156]
[1673708968750,2.49825385,20809.0,20808.0,0.01394156]
[1673708969420,3.14825385,20809.0,20808.0,0.01394156]
[1673708969640,2.84825385,20809.0,20808.0,0.01394156]
[1673708969854,3.0047253,20809.0,20808.0,0.01394156]
[1673708970066,3.14816604,20809.0,20808.0,0.01394156]
[1673708970305,2.8317755,20809.0,20808.0,0.01394156]
[1673708970540,2.5317755,20809.0,20808.0,0.01394156]
[1673708970750,2.83177614,20809.0,20808.0,0.01394156]
[1673708970972,2.97555716,20809.0,20808.0,0.01394156]
[1673708971184,2.83171667,20809.0,20808.0,0.01394156]
[1673708971439,2.53171667,20809.0,20808.0,0.01394156]
[1673708971644,3.44965933,20809.0,20808.0,0.01394156]
[1673708971858,3.16243693,20809.0,20808.0,0.01394156]
[1673708972347,3.44965933,20809.0,20808.0,0.01394156]
[1673708972597,2.83171564,20809.0,20808.0,0.01394156]
[1673708972904,2.61630757,20809.0,20808.0,0.01394156]
[1673708973389,2.68833476,20809.0,20808.0,0.01394156]
[1673708973640,2.97555716,20809.0,20808.0,0.01394156]
[1673708974134,2.97513779,20809.0,20808.0,0.01394156]
[1673708974398,3.22541567,20809.0,20808.0,0.01394156]
[1673708974665,3.14040226,20809.0,20808.0,0.01394156]
[1673708974901,2.46014909,20809.0,20808.0,0.01394156]
[1673708975148,2.97506158,20809.0,20808.0,0.01394156]
[1673708975645,2.83109067,20809.0,20808.0,0.01394156]
[1673708975887,2.97506158,20809.0,20808.0,0.01394156]
[1673708976374,2.97506158,20809.0,20807.0,0.00502963]
[1673708976618,0.72895614,20808.0,20807.0,0.00502963]
[1673708976868,2.13022714,20808.0,20807.0,0.00502963]
[1673708977626,2.48910758,20808.0,20807.0,0.00502963]
[1673708977886,2.20188518,20808.0,20807.0,0.00502963]
[1673708978122,2.48007768,20808.0,20807.0,0.00502963]
[1673708978366,2.98880585,20808.0,20807.0,0.00502963]
[1673708978620,2.99783575,20808.0,20807.0,9.63e-06]
[1673708978862,3.80332748,20808.0,20807.0,9.63e-06]
[1673708979127,4.29714234,20808.0,20807.0,9.63e-06]
[1673708979383,4.16114234,20808.0,20807.0,9.63e-06]
[1673708979632,3.68222748,20808.0,20806.0,2.53272676]
[1673708979866,3.04052203,20807.0,20806.0,2.28622376]
[1673708980122,3.97996806,20807.0,20806.0,2.28622376]
[1673708980393,4.32996806,20807.0,20806.0,1.53428576]
[1673708980621,2.55173957,20807.0,20806.0,1.53428576]
[1673708980860,2.39488439,20807.0,20806.0,1.53428576]
[1673708981126,2.25173957,20807.0,20806.0,1.53428576]
[1673708981359,3.24749339,20807.0,20806.0,1.11740432]
[1673708981608,3.43529359,20807.0,20806.0,1.11740432]
[1673708982124,3.39819142,20807.0,20805.0,0.01172874]
[1673708982373,1.14346374,20806.0,20805.0,0.01172874]
[1673708982625,2.13016951,20806.0,20805.0,0.01172874]
[1673708982876,2.04482674,20806.0,20805.0,0.01172874]
[1673708983382,2.39482674,20806.0,20805.0,0.01172874]
[1673708983642,1.83046782,20806.0,20805.0,0.01172874]
[1673708983893,1.687363,20806.0,20805.0,0.01172874]
[1673708984376,1.337363,20806.0,20805.0,0.01172874]
[1673708984619,1.6674173,20806.0,20805.0,0.01172874]
[1673708984872,1.81052212,20806.0,20805.0,0.01172874]
[1673708985133,0.03792926,20805.0,20804.0,0.27383995]
[1673708985409,0.03792926,20805.0,20804.0,9.95e-06]
[1673708985410,2.19296031,20805.0,20804.0,9.95e-06]
[1673708985656,2.97872606,20805.0,20804.0,9.95e-06]
[1673708985907,0.9439216,20805.0,20804.0,9.95e-06]
[1673708986163,0.87235165,20805.0,20804.0,9.95e-06]
[1673708986434,0.729256,20805.0,20804.0,9.95e-06]
[1673708986677,0.866256,20805.0,20804.0,9.95e-06]
[1673708986921,0.720756,20805.0,20804.0,9.95e-06]
[1673708987910,1.337409,20805.0,20804.0,9.95e-06]
[1673708988443,1.82311069,20805.0,20804.0,9.95e-06]
[1673708988675,1.82311069,20805.0,20802.0,0.0132992]
[1673708988676,0.02626005,20803.0,20802.0,0.0132992]
[1673708988919,1.94555874,20803.0,20802.0,0.0132992]
[1673708989190,2.19416174,20803.0,20802.0,0.0132992]
[1673708989959,1.21005105,20803.0,20802.0,0.0132992]
[1673708990264,0.72935205,20803.0,20802.0,0.0132992]
[1673708990458,0.48924905,20803.0,20802.0,0.0132992]
[1673708990704,0.86535205,20803.0,20802.0,0.0132992]
[1673708990946,0.96535205,20803.0,20802.0,0.0132992]
[1673708991193,1.40135205,20803.0,20802.0,0.0132992]
[1673708991442,1.45135205,20803.0,20802.0,0.0132992]
[1673708991697,1.35135205,20803.0,20802.0,0.0132992]
[1673708992204,1.71575298,20803.0,20802.0,0.0132992]
[1673708992449,1.47855374,20803.0,20802.0,0.0132992]
[1673708992972,0.51215305,20803.0,20802.0,0.0132992]
[1673708993200,0.27205005,20803.0,20802.0,0.0132992]
[1673708994179,0.27205005,20803.0,20802.0,0.0082992]
[1673708995300,1.20084094,20803.0,20802.0,0.0082992]
[1673708995476,1.65564351,20803.0,20802.0,0.0082992]
[1673708995715,1.65564351,20803.0,20797.0,2.21e-06]
[1673708995716,0.0501,20799.0,20795.0,6.62e-06]
[1673708995976,0.0501,20799.0,20790.0,0.01386915]
[1673708995977,0.62047367,20796.0,20792.0,0.30768905]
[1673708996229,0.3582319,20793.0,20792.0,0.30768905]
[1673708996478,0.1,20792.0,20790.0,0.01386915]
[1673708996750,0.91180595,20791.0,20790.0,0.01386915]
[1673708996975,1.02030595,20791.0,20790.0,0.01386915]
[1673708997215,1.19704429,20791.0,20790.0,0.01386915]
[1673708997477,1.38777024,20791.0,20790.0,0.01386915]
[1673708997722,3.21949489,20791.0,20790.0,0.01386915]
[1673708997965,2.79533378,20791.0,20790.0,0.01386915]
[1673708998239,0.11385985,20790.0,20788.0,0.25]
[1673708998470,0.11385985,20790.0,20781.0,0.37530048]
[1673708998471,3.24839855,20789.0,20781.0,0.37530048]
[1673708998742,0.429338,20785.0,20781.0,0.37530048]
[1673708999478,0.35,20783.0,20781.0,0.37530048]
[1673708999747,0.54072595,20783.0,20781.0,0.37530048]
[1673709000014,0.0085,20782.0,20781.0,0.37530048]
[1673709000530,0.585071,20782.0,20781.0,0.37530048]
[1673709001022,0.576571,20782.0,20781.0,0.55950856]
[1673709001265,0.485,20782.0,20781.0,0.37530048]
[1673709001517,0.35,20782.0,20781.0,0.37530048]
[1673709001789,0.429338,20785.0,20781.0,0.47530048]
[1673709002023,0.429338,20785.0,20784.0,0.6]
[1673709002282,0.429338,20785.0,20784.0,0.306301]
[1673709002765,0.429338,20785.0,20781.0,0.38630048]
[1673709003031,0.62006395,20785.0,20781.0,0.36130048]
[1673709003268,0.429338,20785.0,20781.0,0.54550856]
[1673709003507,0.62006395,20785.0,20781.0,0.36130048]
[1673709003762,0.62006395,20785.0,20781.0,0.65664348]
[1673709004005,0.62506395,20785.0,20782.0,0.306331]
[1673709004251,0.429338,20785.0,20781.0,0.36954648]
[1673709004492,0.62506395,20785.0,20781.0,0.49554648]
[1673709004748,0.434338,20785.0,20783.0,0.1]
[1673709004998,0.434338,20785.0,20784.0,0.78744]
[1673709005243,0.434338,20785.0,20784.0,0.306301]
[1673709005478,0.434338,20785.0,20783.0,0.25]
[1673709005740,0.38332475,20783.0,20781.0,0.36954648]
[1673709006727,0.38332475,20783.0,20781.0,0.85075248]
[1673709006972,0.38332475,20783.0,20782.0,0.606334]
[1673709007219,0.38432475,20783.0,20782.0,0.306334]
[1673709007737,0.38432475,20783.0,20782.0,0.787519]
[1673709007980,0.38432475,20783.0,20782.0,0.30693525]
[1673709008228,0.38332475,20783.0,20782.0,0.30693525]
[1673709008459,0.38332475,20783.0,20782.0,0.30893525]
[1673709008460,0.42432475,20783.0,20782.0,0.30893525]
[1673709008722,0.42432475,20783.0,20782.0,0.79012025]
[1673709008965,0.42432475,20783.0,20782.0,0.30893525]
[1673709009234,0.42432475,20783.0,20782.0,0.308334]
[1673709009481,0.42432475,20783.0,20782.0,0.789519]
[1673709009733,0.429338,20785.0,20783.0,0.1]
[1673709009979,0.429338,20785.0,20784.0,0.962278]
[1673709010210,0.429338,20785.0,20784.0,1.568577]
[1673709010751,0.429338,20785.0,20784.0,1.926377]
[1673709010752,0.10841057,20785.0,20784.0,1.926377]
[1673709011014,0.00095655,20793.0,20785.0,0.1]
[1673709011271,0.00095655,20793.0,20787.0,2.04318]
[1673709011501,0.00095655,20793.0,20788.0,0.79043408]
[1673709011743,0.485827,20798.0,20790.0,0.129]
[1673709011744,0.480817,20798.0,20790.0,0.129]
[1673709011992,0.480817,20798.0,20792.0,0.480952]
[1673709012247,0.480803,20799.0,20793.0,0.18420808]
[1673709012499,0.00095178,20798.0,20794.0,0.49032808]
[1673709012747,0.00095178,20798.0,20795.0,0.66508808]
[1673709012978,0.00095178,20798.0,20796.0,0.306088]
[1673709013233,0.01269212,20801.0,20795.0,1.39408]
[1673709013484,0.480772,20800.0,20796.0,0.18420808]
[1673709013727,0.48760172,20800.0,20796.0,0.18420808]
[1673709013986,0.226571,20799.0,20796.0,0.003]
[1673709014221,0.480798,20799.0,20792.0,1.524749]
[1673709014465,0.41729695,20798.0,20796.0,0.13]
[1673709014722,0.00682972,20800.0,20796.0,0.18420808]
[1673709014972,0.00682972,20800.0,20794.0,0.480888]
[1673709014973,0.00682972,20800.0,20797.0,0.18420808]
[1673709015701,0.00682972,20800.0,20798.0,0.306052]
[1673709015954,0.00682972,20800.0,20798.0,0.18420808]
[1673709016205,0.00682972,20800.0,20799.0,0.306035]
[1673709016961,0.00682972,20800.0,20799.0,0.606035]
[1673709017450,0.00682972,20800.0,20799.0,0.306035]
[1673709017710,0.19755567,20800.0,20799.0,0.306035]
[1673709017951,0.19755567,20800.0,20798.0,0.14]
[1673709017952,0.00682972,20800.0,20798.0,0.14]
[1673709018451,0.00682972,20800.0,20798.0,0.480814]
[1673709018686,0.00782972,20800.0,20799.0,0.445034]
[1673709018961,0.00782972,20800.0,20799.0,0.786826]
[1673709018962,0.00682972,20800.0,20799.0,0.786826]
[1673709019468,0.00682972,20800.0,20799.0,1.267618]
[1673709019712,0.00682972,20800.0,20799.0,1.567618]
[1673709020236,0.01082972,20800.0,20799.0,1.567618]
[1673709020487,0.01082972,20800.0,20799.0,1.823318]
[1673709020745,0.01082972,20800.0,20799.0,1.923318]
[1673709020997,5.005e-05,20803.0,20800.0,0.15579028]
[1673709021237,5.005e-05,20803.0,20801.0,2.1743938]
[1673709021479,0.00682972,20807.0,20803.0,0.1]
[1673709021732,0.00795049,20812.0,20803.0,0.1]
[1673709021733,0.00795049,20812.0,20804.0,3.50721626]
[1673709022001,0.00795049,20812.0,20811.0,0.129]
[1673709022239,0.00795049,20812.0,20811.0,0.18420808]
[1673709022475,0.00795049,20812.0,20811.0,0.49003108]
[1673709022736,0.00795049,20812.0,20811.0,0.48320136]
[1673709022737,0.00895049,20812.0,20811.0,0.48320136]
[1673709022979,0.00895049,20812.0,20811.0,0.305823]
[1673709022980,0.00795049,20812.0,20811.0,0.305823]
[1673709023224,0.02295049,20812.0,20811.0,0.307823]
[1673709024210,0.00795049,20812.0,20811.0,0.305823]
[1673709024459,0.00795049,20812.0,20811.0,0.371823]
[1673709024695,0.00795049,20812.0,20810.0,0.480529]
[1673709024696,0.00295049,20812.0,20809.0,1.355138]
[1673709024955,0.19072595,20811.0,20802.0,0.480714]
[1673709025198,0.19072595,20811.0,20802.0,0.65809537]